bitfinex-derivatives/quotes_BTCF0:USTF0_20210409
["timestamp","ask_amount","ask_price","bid_price","bid_amount"]
[1617938023130,4.52518239,57992.0,57991.0,3.6739377]
[1617938034250,5.52518239,57992.0,57991.0,3.6739377]
[1617938036955,4.52518239,57992.0,57991.0,3.6739377]
[1617938037155,4.18985301,57992.0,57991.0,3.6739377]
[1617938038157,4.18985301,57992.0,57991.0,0.7173377]
[1617938038357,5.18985301,57992.0,57991.0,0.7173377]
[1617938038558,5.18985301,57992.0,57991.0,0.65579036]
[1617938039159,4.18985301,57992.0,57991.0,0.65579036]
[1617938043262,5.18985301,57992.0,57991.0,0.65579036]
[1617938043463,5.33242301,57992.0,57991.0,0.65579036]
[1617938046670,4.33242301,57992.0,57991.0,0.65579036]
[1617938047170,5.33242301,57992.0,57991.0,0.65579036]
[1617938048671,5.33242301,57992.0,57991.0,1.0991196]
[1617938049171,5.33242301,57992.0,57991.0,0.65579036]
[1617938049774,5.33242301,57992.0,57991.0,1.09907621]
[1617938050671,4.33242301,57992.0,57991.0,1.09907621]
[1617938051472,5.33242301,57992.0,57991.0,1.09907621]
[1617938052775,5.33242301,57992.0,57991.0,0.65579036]
[1617938057380,1.59902301,57992.0,57991.0,0.65579036]
[1617938057578,2.59902301,57992.0,57991.0,0.65579036]
[1617938058179,2.59902301,57992.0,57991.0,3.85299036]
[1617938058580,2.59902301,57992.0,57991.0,3.91453831]
[1617938061083,1.59902301,57992.0,57991.0,3.91453831]
[1617938061284,1.45645301,57992.0,57991.0,3.91453831]
[1617938061884,1.45645301,57992.0,57991.0,3.96583831]
[1617938062084,1.45645301,57992.0,57991.0,3.91453831]
[1617938063885,1.45645301,57992.0,57991.0,4.35790742]
[1617938080008,1.00571835,57992.0,57991.0,4.35790742]
[1617938089818,3.86811835,57992.0,57991.0,1.16070742]
[1617938093124,1.00571835,57992.0,57991.0,1.16070742]
[1617938093522,1.00571835,57992.0,57991.0,4.79770742]
[1617938094126,1.00571835,57992.0,57991.0,1.16070742]
[1617938094327,1.00571835,57992.0,57991.0,1.25302293]
[1617938094525,4.35231835,57992.0,57991.0,1.25302293]
[1617938094827,4.35231835,57992.0,57991.0,1.16070742]
[1617938095326,4.35231835,57992.0,57991.0,1.09915947]
[1617938096926,1.00571835,57992.0,57991.0,1.09915947]
[1617938097328,1.00571835,57992.0,57991.0,3.83835947]
[1617938097628,1.00571835,57992.0,57991.0,3.99221925]
[1617938100929,1.00571835,57992.0,57991.0,4.04461925]
[1617938101229,1.00571835,57992.0,57991.0,3.99221925]
[1617938103131,1.00571835,57992.0,57991.0,1.25301925]
[1617938103332,3.78091835,57992.0,57991.0,1.25301925]
[1617938103633,3.78091835,57992.0,57991.0,1.09915947]
[1617938104035,3.78091835,57992.0,57991.0,1.2530177]
[1617938104435,3.78091835,57992.0,57991.0,1.09915947]
[1617938108543,3.90618835,57992.0,57991.0,1.09915947]
[1617938110146,4.35701696,57992.0,57991.0,1.09915947]
[1617938111347,5.35701696,57992.0,57991.0,1.09915947]
[1617938111651,5.35701696,57992.0,57991.0,0.65579036]
[1617938111847,5.35701696,57992.0,57991.0,0.7173364]
[1617938112447,5.35701696,57992.0,57991.0,0.65579036]
[1617938112748,5.35701696,57992.0,57991.0,0.71733659]
[1617938113348,5.35701696,57992.0,57991.0,0.65579036]
[1617938113749,5.35701696,57992.0,57991.0,0.71733661]
[1617938114452,4.35701696,57992.0,57991.0,0.65579036]
[1617938114850,4.35701696,57992.0,57991.0,0.71733663]
[1617938115252,4.35701696,57992.0,57991.0,0.65579036]
[1617938122161,1.58181696,57992.0,57991.0,0.65579036]
[1617938122561,1.58181696,57992.0,57991.0,3.98619036]
[1617938122761,1.23396476,57992.0,57991.0,3.98619036]
[1617938123262,1.4594196,57992.0,57991.0,4.04773706]
[1617938134278,1.4594196,57992.0,57991.0,0.71733706]
[1617938134478,4.8472196,57992.0,57991.0,0.71733706]
[1617938134778,4.8472196,57992.0,57991.0,0.65579036]
[1617938135581,5.18463452,57992.0,57991.0,0.65579036]
[1617938136180,1.79683452,57992.0,57991.0,0.65579036]
[1617938136980,1.4594196,57992.0,57991.0,0.65579036]
[1617938138082,4.4842196,57992.0,57991.0,0.65579036]
[1617938138582,4.82167396,57992.0,57991.0,0.65579036]
[1617938145888,4.82167396,57992.0,57991.0,1.09852946]
[1617938149496,4.82167396,57992.0,57991.0,0.65579036]
[1617938153296,5.82167396,57992.0,57991.0,0.65579036]
[1617938153799,4.82167396,57992.0,57991.0,0.65579036]
[1617938154297,5.82167396,57992.0,57991.0,0.65579036]
[1617938156898,5.82167396,57992.0,57991.0,0.71733838]
[1617938162407,4.82167396,57992.0,57991.0,0.71733838]
[1617938162710,1.79687396,57992.0,57991.0,0.71733838]
[1617938162910,1.79687396,57992.0,57991.0,4.37893838]
[1617938163413,1.4594196,57992.0,57991.0,4.37893838]
[1617938163817,1.4594196,57992.0,57991.0,4.82181184]
[1617938164910,1.4594196,57992.0,57991.0,1.16021184]
[1617938165311,4.1797196,57992.0,57991.0,1.16021184]
[1617938166014,4.51503245,57992.0,57991.0,1.16021184]
[1617938170421,4.1797196,57992.0,57991.0,1.16021184]
[1617938171521,5.1797196,57992.0,57991.0,1.16021184]
[1617938171725,5.1797196,57992.0,57991.0,0.71733838]
[1617938172222,5.69246957,57992.0,57991.0,0.65579036]
[1617938172624,5.69246957,57992.0,57991.0,0.30167744]
[1617938173224,2.97216957,57992.0,57991.0,0.30167744]
[1617938180841,2.97216957,57992.0,57989.0,0.30014234]
[1617938181241,1.12692584,57990.0,57989.0,0.30014234]
[1617938181640,2.12692584,57990.0,57989.0,0.30014234]
[1617938182039,2.35206929,57990.0,57989.0,0.30014234]
[1617938183841,1.35206929,57990.0,57989.0,0.30014234]
[1617938184640,1.12692584,57990.0,57989.0,0.30014234]
[1617938185142,2.12692584,57990.0,57989.0,0.30014234]
[1617938185542,2.35206838,57990.0,57989.0,0.30014234]
[1617938186144,2.35206838,57990.0,57988.0,0.29984834]
[1617938186443,2.35190168,57989.0,57988.0,0.29984834]
[1617938187046,2.35190168,57989.0,57987.0,0.29983692]
[1617938187544,2.9678,57985.0,57984.0,0.29991179]
[1617938187944,2.9678,57985.0,57966.0,0.4611]
[1617938187945,4.65692075,57985.0,57983.0,0.29998675]
[1617938188346,1.68914042,57984.0,57981.0,0.36011651]
[1617938188746,1.12685145,57982.0,57981.0,0.36011651]
[1617938188945,4.28034145,57982.0,57981.0,0.36011651]
[1617938189147,5.28034145,57982.0,57981.0,0.66032426]
[1617938189446,5.387598,57982.0,57981.0,0.66032426]
[1617938189650,5.94989377,57982.0,57981.0,0.66032426]
[1617938190650,5.94989377,57982.0,57981.0,0.30020775]
[1617938191050,5.94989377,57982.0,57981.0,0.36176575]
[1617938191352,5.61274183,57982.0,57981.0,0.30020775]
[1617938192254,2.59464183,57982.0,57981.0,0.30020775]
[1617938197657,2.14392173,57982.0,57981.0,0.30020775]
[1617938201660,2.64392173,57982.0,57981.0,0.30020775]
[1617938201962,3.84392173,57982.0,57981.0,0.30020775]
[1617938202160,5.16206279,57982.0,57974.0,0.29996739]
[1617938202861,1.67450335,57975.0,57970.0,0.29955756]
[1617938203061,1.0,57971.0,57970.0,0.29955756]
[1617938203263,1.0,57971.0,57967.0,0.42102709]
[1617938203264,1.67453415,57971.0,57966.0,0.4611]
[1617938203662,0.10725655,57967.0,57966.0,0.4611]
[1617938203862,1.25593655,57967.0,57966.0,0.4611]
[1617938204062,1.56255295,57967.0,57966.0,0.76081141]
[1617938204562,1.25593655,57967.0,57966.0,0.76081141]
[1617938204861,0.25593655,57967.0,57966.0,0.76081141]
[1617938205064,0.26625579,57967.0,57966.0,1.12033426]
[1617938205363,3.89195579,57967.0,57966.0,1.12033426]
[1617938205962,4.18825078,57967.0,57966.0,0.76081141]
[1617938206362,3.88163655,57967.0,57966.0,1.12028016]
[1617938207886,4.88163655,57967.0,57966.0,1.12028016]
[1617938208162,5.18825411,57967.0,57966.0,0.76081141]
[1617938208962,4.18825411,57967.0,57966.0,0.76081141]
[1617938209262,0.56255411,57967.0,57966.0,0.76081141]
[1617938210362,1.56255411,57967.0,57966.0,0.76081141]
[1617938212065,0.56255411,57967.0,57966.0,0.76081141]
[1617938212465,1.56255411,57967.0,57966.0,0.76081141]
[1617938212667,5.24975411,57967.0,57966.0,0.76081141]
[1617938213166,4.24975411,57967.0,57966.0,0.76081141]
[1617938213567,3.94313655,57967.0,57966.0,0.76081141]
[1617938213969,3.94313655,57967.0,57966.0,1.12030149]
[1617938214570,3.94313655,57967.0,57966.0,0.76081141]
[1617938216372,3.94313655,57967.0,57966.0,1.12029772]
[1617938217072,0.25593655,57967.0,57966.0,1.12029772]
[1617938217273,0.10725655,57967.0,57966.0,1.12029772]
[1617938217681,0.10725655,57967.0,57966.0,4.27039772]
[1617938219876,0.10725655,57967.0,57966.0,1.12029772]
[1617938230295,0.10725655,57967.0,57966.0,1.56040936]
[1617938234100,0.01033039,57969.0,57966.0,1.56040936]
[1617938234903,0.01033236,57970.0,57968.0,1.10213229]
[1617938235202,0.01033236,57970.0,57969.0,0.2]
[1617938235405,0.30699129,57976.0,57969.0,1.80165302]
[1617938235804,0.30698408,57977.0,57975.0,3.73324157]
[1617938236103,0.30698408,57977.0,57975.0,1.10094157]
[1617938236304,0.30695851,57978.0,57976.0,3.92242011]
[1617938236503,0.30695851,57978.0,57976.0,4.05919011]
[1617938236705,0.30694195,57983.0,57977.0,1.25343864]
[1617938237206,0.30693728,57985.0,57982.0,1.09950097]
[1617938237404,0.30693728,57985.0,57983.0,0.2]
[1617938237604,0.30693728,57985.0,57984.0,2.9413]
[1617938237906,0.36830428,57988.0,57984.0,2.9413]
[1617938237907,0.30692749,57988.0,57986.0,0.10725655]
[1617938238107,0.30692644,57989.0,57987.0,0.2]
[1617938238604,0.30692644,57989.0,57988.0,1.16055751]
[1617938238905,0.30692644,57989.0,57988.0,1.26308751]
[1617938239110,0.10725655,57993.0,57988.0,1.26308751]
[1617938239111,0.306921,57990.0,57988.0,1.26308751]
[1617938239505,0.306921,57990.0,57989.0,1.16012551]
[1617938241011,0.306921,57990.0,57989.0,4.32812551]
[1617938241512,0.306921,57990.0,57989.0,4.42044022]
[1617938243214,0.306921,57990.0,57989.0,5.42044022]
[1617938243416,0.30615092,57990.0,57989.0,5.42044022]
[1617938245620,0.24617009,57999.0,57989.0,5.32812551]
[1617938245621,0.01030828,57993.0,57989.0,5.32812551]
[1617938245818,0.01030828,57993.0,57992.0,0.10725655]
[1617938247821,0.01030828,57993.0,57992.0,0.21527655]
[1617938251127,0.01030825,57994.0,57992.0,0.21527655]
[1617938251527,0.10725655,58000.0,57992.0,0.21527655]
[1617938251528,0.01030253,57995.0,57992.0,0.21527655]
[1617938256441,0.10725655,58000.0,57992.0,0.21527655]
[1617938256442,0.01029376,57996.0,57992.0,0.21527655]
[1617938260344,0.01029376,57996.0,57992.0,1.21527655]
[1617938260946,0.01029376,57996.0,57992.0,0.21527655]
[1617938261147,0.01029374,57997.0,57992.0,0.21527655]
[1617938264450,0.01029374,57997.0,57992.0,1.21527655]
[1617938265653,0.01029374,57997.0,57993.0,1.0]
[1617938266453,0.01028989,57998.0,57992.0,1.21527655]
[1617938266856,0.01028993,57997.0,57992.0,1.21527655]
[1617938267855,0.01028993,57997.0,57992.0,0.21527655]
[1617938268354,0.01028993,57997.0,57992.0,1.21527655]
[1617938268654,0.01028993,57997.0,57993.0,1.0]
[1617938268854,0.0102892,57998.0,57993.0,1.0]
[1617938271461,0.0102892,57998.0,57992.0,0.10802]
[1617938271672,0.0102892,57998.0,57994.0,1.0]
[1617938271861,0.0102892,57998.0,57994.0,1.0994]
[1617938272063,0.01028907,57999.0,57997.0,0.10725655]
[1617938273957,0.01029406,57998.0,57997.0,0.10725655]
[1617938274759,0.30586903,57998.0,57997.0,0.10725655]
[1617938275360,0.01029404,57998.0,57997.0,0.10725655]
[1617938275559,0.01029404,57998.0,57997.0,2.67035655]
[1617938279667,0.30586551,57999.0,57997.0,2.67035655]
[1617938281765,0.30592944,57998.0,57997.0,2.67035655]
[1617938282068,0.01029618,57998.0,57997.0,2.67035655]
[1617938283871,0.30623554,57998.0,57997.0,2.67035655]
[1617938291680,0.30623554,57998.0,57997.0,2.5631]
[1617938294382,0.30623554,57998.0,57997.0,2.67035655]
[1617938294684,1.12654149,57998.0,57997.0,3.77722507]
[1617938300488,1.12654149,57998.0,57997.0,3.33447766]
[1617938301686,1.12654149,57998.0,57997.0,3.77617237]
[1617938303387,1.12654149,57998.0,57997.0,1.21307237]
[1617938303788,4.21454149,57998.0,57997.0,1.21307237]
[1617938303987,4.21454149,57998.0,57997.0,0.77137766]
[1617938304488,4.82592342,57998.0,57997.0,0.83292498]
[1617938306089,4.82592342,57998.0,57997.0,1.27458422]
[1617938307490,1.73792342,57998.0,57997.0,1.27458422]
[1617938307790,1.73792342,57998.0,57997.0,4.89118422]
[1617938308794,1.12654149,57998.0,57997.0,4.98350337]
[1617938311693,3.87974149,57998.0,57997.0,1.36690337]
[1617938312093,3.87974149,57998.0,57997.0,1.25964682]
[1617938312393,4.49109079,57998.0,57997.0,0.72566843]
[1617938312594,4.59834734,57998.0,57997.0,0.72566843]
[1617938312795,4.59834734,57998.0,57997.0,0.66412111]
[1617938313093,5.59834734,57998.0,57997.0,0.66412111]
[1617938313395,4.59834734,57998.0,57997.0,0.66412111]
[1617938313993,1.84514734,57998.0,57997.0,0.66412111]
[1617938314293,1.84514734,57998.0,57997.0,3.27512111]
[1617938314793,1.84514734,57998.0,57997.0,3.33666989]
[1617938314794,1.47998455,57998.0,57997.0,3.33666989]
[1617938317795,0.10725655,57998.0,57997.0,2.611]
[1617938318296,1.23526564,57998.0,57997.0,3.27539997]
[1617938319201,1.48145706,57998.0,57997.0,3.27539997]
[1617938327811,0.92760816,57998.0,57997.0,2.97339998]
[1617938328012,0.10725655,57998.0,57997.0,2.71793]
[1617938328512,1.23507528,57998.0,57997.0,3.38367827]
[1617938328914,1.23507528,57998.0,57997.0,3.82749152]
[1617938329416,1.4812607,57998.0,57997.0,3.82749152]
[1617938330416,1.03015371,57998.0,57997.0,3.82749152]
[1617938335721,1.03015371,57998.0,57997.0,1.21649152]
[1617938336820,1.03015371,57998.0,57997.0,1.27803285]
[1617938346832,0.92289716,57998.0,57997.0,1.27803285]
[1617938347533,0.67671174,57998.0,57997.0,1.27803285]
[1617938348134,0.30760556,57998.0,57997.0,1.27803285]
[1617938353643,2.96370556,57998.0,57997.0,1.27803285]
[1617938353839,2.96370556,57998.0,57997.0,1.17110285]
[1617938354440,2.96370556,57998.0,57997.0,1.26341453]
[1617938358045,0.30760556,57998.0,57997.0,1.26341453]
[1617938358645,0.30760556,57998.0,57997.0,1.10956152]
[1617938359347,3.66910556,57998.0,57997.0,1.10956152]
[1617938360049,3.82464556,57998.0,57997.0,1.10956152]
[1617938360650,4.19336468,57998.0,57997.0,1.10956152]
[1617938360949,4.30062123,57998.0,57997.0,1.10956152]
[1617938361351,0.93912123,57998.0,57997.0,1.10956152]
[1617938361550,0.78358123,57998.0,57997.0,4.50636152]
[1617938362152,0.78358123,57998.0,57997.0,4.66021751]
[1617938362552,1.0297507,57998.0,57997.0,4.66021751]
[1617938363553,0.92249415,57998.0,57997.0,4.66021751]
[1617938364356,0.30760556,57998.0,57997.0,4.66021751]
[1617938364973,0.30760556,57998.0,57997.0,4.76747406]
[1617938365571,0.01034197,57998.0,57997.0,5.27248225]
[1617938367060,0.01034165,57999.0,57997.0,5.27248225]
[1617938367761,0.01034165,57999.0,57998.0,1.76931787]
[1617938369061,0.30728285,57999.0,57998.0,1.6770163]
[1617938369261,0.30728285,57999.0,57998.0,4.5751163]
[1617938369562,0.01034064,57999.0,57998.0,4.5751163]
[1617938369962,0.01034064,57999.0,57998.0,4.66741605]
[1617938371363,0.01034064,57999.0,57998.0,5.86741605]
[1617938371564,0.36867962,58003.0,57998.0,5.86741605]
[1617938371565,0.01033983,58002.0,57998.0,5.86741605]
[1617938371963,0.01033983,58002.0,57998.0,4.86741605]
[1617938372265,0.01033926,58005.0,58002.0,0.2]
[1617938372562,0.01033926,58005.0,58004.0,1.0]
[1617938372766,0.01033886,58008.0,58005.0,0.2]
[1617938373063,0.01033886,58008.0,58007.0,0.10725655]
[1617938373268,0.01033873,58011.0,58007.0,1.10725655]
[1617938373665,0.01033873,58011.0,58010.0,2.61173639]
[1617938373866,0.01033873,58011.0,58010.0,2.74111639]
[1617938374177,0.01033851,58012.0,58010.0,2.80263821]
[1617938374466,0.01033851,58012.0,58010.0,1.80263821]
[1617938374768,0.01033845,58013.0,58011.0,1.673106]
[1617938374966,0.51190701,58027.0,58011.0,1.26176797]
[1617938374967,0.01030908,58019.0,58011.0,1.26176797]
[1617938375466,0.01030908,58019.0,58018.0,0.66280124]
[1617938376267,0.01030891,58020.0,58018.0,0.66280124]
[1617938376665,0.01030891,58020.0,58019.0,0.66283134]
[1617938377166,0.01030891,58020.0,58019.0,0.77008789]
[1617938377670,0.30630722,58021.0,58019.0,0.83160803]
[1617938377671,0.01030887,58021.0,58019.0,0.83160803]
[1617938378067,0.30630838,58021.0,58020.0,0.36277857]
[1617938380271,0.01030888,58021.0,58020.0,0.72422676]
[1617938380470,0.01030888,58021.0,58020.0,3.25832676]
[1617938383677,0.01031048,58022.0,58020.0,3.25832676]
[1617938384175,0.01031024,58023.0,58021.0,0.72396423]
[1617938384575,0.01031024,58023.0,58022.0,0.66253905]
[1617938384775,0.01031024,58023.0,58022.0,0.79065905]
[1617938385679,0.01029652,58025.0,58022.0,0.42927411]
[1617938386181,0.01029652,58025.0,58023.0,0.30074342]
[1617938388081,0.3059392,58026.0,58023.0,0.30074342]
[1617938388082,0.01029647,58026.0,58023.0,0.30074342]
[1617938389182,0.01029647,58026.0,58025.0,0.10725655]
[1617938389385,0.01029591,58028.0,58025.0,0.40791845]
[1617938389783,0.01029591,58028.0,58026.0,0.30066347]
[1617938390184,0.01029591,58028.0,58027.0,3.2746]
[1617938390386,0.01029591,58028.0,58027.0,4.2746]
[1617938390787,0.0102957,58032.0,58027.0,4.93555843]
[1617938391187,0.0102957,58032.0,58031.0,0.10725655]
[1617938391389,0.3059149,58033.0,58031.0,0.10725655]
[1617938391390,0.01029566,58033.0,58031.0,0.10725655]
[1617938391789,0.01029297,58035.0,58031.0,0.4076056]
[1617938392190,0.01029297,58035.0,58034.0,2.882]
[1617938392491,0.30583397,58035.0,58034.0,2.98501]
[1617938393590,0.30583397,58035.0,58034.0,0.10301]
[1617938394592,3.80743397,58035.0,58031.0,0.10725655]
[1617938394791,0.45982397,58035.0,58031.0,0.10725655]
[1617938394992,0.01029297,58033.0,58031.0,0.10725655]
[1617938395192,3.502,58032.0,58031.0,0.10725655]
[1617938395895,3.80784567,58032.0,58031.0,0.10725655]
[1617938396496,3.502,58032.0,58031.0,0.10725655]
[1617938396694,0.30559448,58032.0,58031.0,0.10725655]
[1617938397396,0.30559204,58033.0,58031.0,0.10725655]
[1617938397795,0.01028484,58032.0,58031.0,0.10725655]
[1617938397998,0.01028484,58032.0,58031.0,3.69015655]
[1617938398295,0.30559204,58033.0,58031.0,0.10725655]
[1617938398798,3.61779165,58032.0,58031.0,0.10725655]
[1617938399799,0.30559165,58032.0,58031.0,0.10725655]
[1617938400599,0.0102847,58032.0,58031.0,0.10725655]
[1617938401298,0.0102847,58032.0,58031.0,3.49225655]
[1617938402602,0.01028404,58036.0,58031.0,3.49225655]
[1617938402802,0.01028404,58036.0,58031.0,3.62333655]
[1617938403001,0.01028404,58036.0,58031.0,0.23833655]
[1617938403202,3.1962,58032.0,58031.0,0.23833655]
[1617938405104,3.1962,58032.0,58031.0,0.10725655]
[1617938414415,3.20648744,58032.0,58031.0,0.10725655]
[1617938415718,3.1962,58032.0,58031.0,0.10725655]
[1617938417420,3.20649132,58032.0,58031.0,0.10725655]
[1617938418320,3.50199017,58032.0,58031.0,0.10725655]
[1617938419621,0.30579017,58032.0,58031.0,0.10725655]
[1617938419825,0.0102913,58032.0,58031.0,0.21295655]
[1617938420023,0.0102913,58032.0,58031.0,2.78485655]
[1617938420526,0.01029115,58033.0,58031.0,2.78485655]
[1617938421024,0.01029115,58033.0,58031.0,0.21295655]
[1617938421425,2.78189115,58033.0,58032.0,3.3463]
[1617938422328,2.7716,58033.0,58032.0,3.3463]
[1617938423831,3.44658311,58033.0,58032.0,4.01037304]
[1617938436645,3.44658311,58033.0,58032.0,4.45383027]
[1617938442555,3.44658311,58033.0,58032.0,4.01037304]
[1617938442957,3.44658311,58033.0,58032.0,4.45376213]
[1617938443456,3.44658311,58033.0,58032.0,0.66407304]
[1617938443815,4.44658311,58033.0,58032.0,0.66407304]
[1617938444168,4.89696745,58033.0,58032.0,0.66407304]
[1617938445561,2.12536745,58033.0,58032.0,0.66407304]
[1617938446459,1.12536745,58033.0,58032.0,0.66407304]
[1617938446774,1.48190446,58033.0,58032.0,0.66407304]
[1617938448763,1.48190446,58033.0,58032.0,1.10793463]
[1617938449164,1.12536745,58033.0,58032.0,1.10793463]
[1617938449471,1.12536745,58033.0,58032.0,1.16943897]
[1617938449472,1.37138481,58033.0,58032.0,1.16943897]
[1617938450068,1.12536745,58033.0,58032.0,1.16943897]
[1617938450367,0.92099769,58033.0,58032.0,1.16943897]
[1617938450768,0.67498311,58033.0,58032.0,1.16943897]
[1617938451270,0.67498311,58033.0,58032.0,1.10793463]
[1617938453572,3.40728311,58033.0,58032.0,1.10793463]
[1617938453769,3.52782311,58033.0,58032.0,1.10793463]
[1617938454070,3.77384171,58033.0,58032.0,1.10793463]
[1617938454570,4.22464899,58033.0,58032.0,1.10793463]
[1617938457276,5.22464899,58033.0,58032.0,1.10793463]
[1617938458177,5.22464899,58033.0,58032.0,0.66407304]
[1617938458679,5.7370319,58033.0,58032.0,0.66407304]
[1617938459677,4.7370319,58033.0,58032.0,0.66407304]
[1617938459877,5.7370319,58033.0,58032.0,0.66407304]
[1617938460083,5.7370319,58033.0,58032.0,0.30185138]
[1617938463882,4.7370319,58033.0,58032.0,0.30185138]
[1617938464081,5.22464899,58033.0,58032.0,0.66581739]
[1617938473390,5.22464899,58033.0,58032.0,0.30185138]
[1617938473792,5.22464899,58033.0,58032.0,0.66583274]
[1617938474194,5.22464899,58033.0,58032.0,0.30185138]
[1617938474594,6.92464899,58033.0,58032.0,0.30185138]
[1617938474995,7.43656381,58033.0,58031.0,0.3034991]
[1617938475394,2.22599149,58032.0,58030.0,0.30353049]
[1617938475594,1.7,58031.0,58030.0,0.30353049]
[1617938476094,3.33825188,58031.0,58030.0,0.30353049]
[1617938476396,3.92600521,58031.0,58030.0,0.30353049]
[1617938476797,4.92600521,58031.0,58030.0,0.30353049]
[1617938477295,4.92600521,58031.0,58029.0,0.30367699]
[1617938477797,2.7,58030.0,58029.0,0.30367699]
[1617938477995,4.92609952,58030.0,58029.0,0.30367699]
[1617938478999,4.72609952,58030.0,58029.0,0.30367699]
[1617938480598,7.33859952,58030.0,58029.0,0.30367699]
[1617938481298,3.22609952,58030.0,58029.0,0.30367699]
[1617938481499,3.22609952,58030.0,58029.0,3.71477699]
[1617938482199,2.3666901,58030.0,58029.0,3.77629272]
[1617938482401,2.71414067,58030.0,58029.0,4.13980172]
[1617938482800,2.3666901,58030.0,58029.0,4.13980172]
[1617938482998,2.3666901,58030.0,58029.0,4.24847172]
[1617938484503,1.3666901,58030.0,58029.0,4.24847172]
[1617938484700,2.3666901,58030.0,58029.0,4.24847172]
[1617938484900,2.3666901,58030.0,58029.0,4.13980172]
[1617938487604,1.3666901,58030.0,58029.0,4.13980172]
[1617938488106,1.12637729,58030.0,58029.0,4.13980172]
[1617938488605,1.37006792,58030.0,58029.0,4.13980172]
[1617938489006,1.14167729,58030.0,58029.0,4.13980172]
[1617938489406,1.38536651,58030.0,58029.0,4.13980172]
[1617938492510,1.38536651,58030.0,58029.0,0.72870172]
[1617938492708,4.20556651,58030.0,58029.0,0.72870172]
[1617938493110,4.20556651,58030.0,58029.0,0.66718599]
[1617938493510,4.5551248,58030.0,58029.0,0.66718599]
[1617938500223,5.5551248,58030.0,58029.0,0.66718599]
[1617938501423,4.5551248,58030.0,58029.0,0.66718599]
[1617938501624,5.5551248,58030.0,58029.0,0.66718599]
[1617938504926,4.5551248,58030.0,58029.0,0.66718599]
[1617938505126,5.5551248,58030.0,58029.0,0.66718599]
[1617938510832,2.7349248,58030.0,58029.0,0.66718599]
[1617938511033,1.7349248,58030.0,58029.0,0.66718599]
[1617938511435,6.3651248,58030.0,58029.0,0.66718599]
[1617938511636,6.01556651,58030.0,58029.0,0.66718599]
[1617938512037,6.36554515,58030.0,58029.0,0.66718599]
[1617938513939,6.8780468,58030.0,58029.0,0.66718599]
[1617938517143,6.36554515,58030.0,58029.0,0.66718599]
[1617938517642,6.87800512,58030.0,58029.0,0.66718599]
[1617938518045,6.36554515,58030.0,58029.0,0.66718599]
[1617938520350,6.46341515,58030.0,58029.0,0.66718599]
[1617938522451,6.97587558,58030.0,58029.0,0.66718599]
[1617938523351,6.46341515,58030.0,58029.0,0.66718599]
[1617938525253,2.73534515,58030.0,58029.0,0.66718599]
[1617938525653,2.38536651,58030.0,58029.0,3.64648599]
[1617938526054,2.38536651,58030.0,58029.0,3.70799938]
[1617938526254,2.38536651,58030.0,58029.0,3.82030938]
[1617938526455,2.38536651,58030.0,58029.0,4.26341021]
[1617938526754,2.38536651,58030.0,58029.0,1.28411021]
[1617938526954,5.27746651,58030.0,58029.0,1.28411021]
[1617938527154,4.27746651,58030.0,58029.0,1.28411021]
[1617938527355,4.62231124,58030.0,58029.0,1.28411021]
[1617938527757,4.62231124,58030.0,58029.0,1.17180021]
[1617938528156,4.62231124,58030.0,58029.0,1.11028682]
[1617938538572,4.62231124,58030.0,58029.0,0.66718599]
[1617938539274,5.62231124,58030.0,58029.0,0.66718599]
[1617938543176,7.12231124,58030.0,58029.0,0.66718599]
[1617938543982,5.62231124,58030.0,58029.0,0.66718599]
[1617938544187,6.13466167,58030.0,58029.0,0.66718599]
[1617938545177,6.18636167,58030.0,58029.0,0.66718599]
[1617938545376,7.68636167,58030.0,58029.0,0.45358599]
[1617938545577,7.68636167,58030.0,58029.0,0.21498599]
[1617938545778,7.68636167,58030.0,58016.0,0.50387814]
[1617938546177,3.3555,58017.0,58016.0,0.50387814]
[1617938546377,4.60505655,58017.0,58016.0,0.50387814]
[1617938546779,4.60505655,58017.0,57997.0,0.10725655]
[1617938546780,4.85112363,58017.0,58015.0,0.50400137]
[1617938547178,0.24606954,58016.0,58014.0,0.50404186]
[1617938547579,0.24606954,58016.0,58015.0,0.44358888]
[1617938548678,1.24606954,58016.0,58015.0,0.44358888]
[1617938551280,4.96836954,58016.0,58015.0,0.44358888]
[1617938556607,3.96836954,58016.0,58015.0,0.44358888]
[1617938557688,3.7223,58016.0,58015.0,0.44358888]
[1617938560091,4.7223,58016.0,58015.0,0.44358888]
[1617938568400,1.0,58016.0,58015.0,0.44358888]
[1617938570003,1.0,58016.0,58015.0,2.99168888]
[1617938570604,1.0,58016.0,58015.0,3.08396664]
[1617938571206,1.0,58016.0,58015.0,3.44648722]
[1617938572407,0.10725655,58017.0,58015.0,3.44648722]
[1617938572907,0.10725655,58017.0,58015.0,2.5481]
[1617938573108,1.0,58016.0,58015.0,2.5481]
[1617938574111,1.0,58016.0,58015.0,3.35385156]
[1617938575713,1.30710721,58016.0,58015.0,3.65604413]
[1617938577015,1.35930721,58016.0,58015.0,3.65604413]
[1617938577414,1.30710721,58016.0,58015.0,3.65604413]
[1617938577714,0.30710721,58016.0,58015.0,3.65604413]
[1617938582515,0.30710721,58016.0,58015.0,3.77243413]
[1617938585923,0.11759049,58017.0,58015.0,4.27568675]
[1617938586323,0.01033406,58016.0,58015.0,3.77243413]
[1617938586723,0.30705342,58016.0,58015.0,3.77243413]
[1617938587223,0.41430991,58017.0,58015.0,3.77243413]
[1617938587924,0.41430991,58017.0,58015.0,2.96668257]
[1617938588224,0.41430991,58017.0,58016.0,1.16886265]
[1617938592026,3.56340991,58017.0,58016.0,1.16886265]
[1617938592228,4.56340991,58017.0,58016.0,1.16886265]
[1617938592630,4.9321414,58017.0,58016.0,1.10734565]
[1617938597738,5.0412814,58017.0,58016.0,1.10734565]
[1617938599338,1.8921814,58017.0,58016.0,1.10734565]
[1617938599539,1.7830414,58017.0,58016.0,1.10734565]
[1617938599739,1.7830414,58017.0,58016.0,3.75914565]
[1617938600341,1.7830414,58017.0,58016.0,3.912935]
[1617938601843,1.7830414,58017.0,58016.0,1.261135]
[1617938602043,3.6548414,58017.0,58016.0,1.261135]
[1617938602644,3.6548414,58017.0,58016.0,1.10734565]
[1617938603245,0.7830414,58017.0,58016.0,1.10734565]
[1617938603445,0.7830414,58017.0,58016.0,3.59994565]
[1617938604046,0.7830414,58017.0,58016.0,3.75373308]
[1617938604446,1.02910026,58017.0,58016.0,3.75373308]
[1617938604847,1.02910026,58017.0,58016.0,4.25911814]
[1617938605247,0.41430991,58017.0,58016.0,4.25911814]
[1617938608352,0.10725655,58017.0,58016.0,4.25911814]
[1617938609252,0.41472762,58017.0,58016.0,4.25911814]
[1617938609754,0.10725655,58017.0,58016.0,4.25911814]
[1617938610255,0.41472821,58017.0,58016.0,4.25911814]
[1617938610755,0.10725655,58017.0,58016.0,4.25911814]
[1617938611256,0.41473319,58017.0,58016.0,4.25911814]
[1617938613259,0.11759888,58017.0,58016.0,4.25911814]
[1617938613460,0.10725655,58017.0,58016.0,4.25911814]
[1617938613660,0.10725655,58017.0,58016.0,1.76651814]
[1617938614201,0.01034187,58018.0,58016.0,1.96651814]